[Event "Titled Tuesday Blitz December 06 Late 2022"]
[White "Mendez Fortes, Eduardo Jesus"]
[Black "Floresvillar Gonzalez, Luis Migu"]
[WhiteFideId "3502376"]
[BlackFideId "5100542"]
[WhiteElo "2307"]
[BlackElo "2040"]
[Result "1-0"]
[Round "01"]
[TimeControl "180+1"]
[Date "2022.12.07"]
[WhiteClock "0:00:52"]
[BlackClock "0:00:11"]

1. e4 {[%clk 0:02:59]}  e6 {[%clk 0:02:59]} 2. d4 {[%clk 0:02:59]}  d5 {[%clk 0:02:59]} 3. Nd2 {[%clk 0:02:59]}  dxe4 {[%clk 0:02:58]} 4. Nxe4 {[%clk 0:03:00]}  Nd7 {[%clk 0:02:58]} 5. Nf3 {[%clk 0:02:58]}  Ngf6 {[%clk 0:02:59]} 6. Bd3 {[%clk 0:02:53]}  c5 {[%clk 0:02:56]} 7. Nxf6+ {[%clk 0:02:50]}  Nxf6 {[%clk 0:02:54]} 8. c3 {[%clk 0:02:34]}  cxd4 {[%clk 0:02:53]} 9. Nxd4 {[%clk 0:02:35]}  Be7 {[%clk 0:02:53]} 10. Qe2 {[%clk 0:02:33]}  O-O {[%clk 0:02:52]} 11. Bg5 {[%clk 0:02:29]}  Re8 {[%clk 0:02:40]} 12. O-O-O {[%clk 0:02:28]}  Qa5 {[%clk 0:02:35]} 13. Bxf6 {[%clk 0:02:25]}  Bxf6 {[%clk 0:02:34]} 14. Qe4 {[%clk 0:02:23]}  g6 {[%clk 0:02:31]} 15. Kb1 {[%clk 0:02:22]}  Bd7 {[%clk 0:02:10]} 16. h4 {[%clk 0:02:17]}  Bc6 {[%clk 0:02:02]} 17. Nxc6 {[%clk 0:02:16]}  bxc6 {[%clk 0:02:02]} 18. Bc2 {[%clk 0:02:12]}  Rab8 {[%clk 0:01:46]} 19. Bb3 {[%clk 0:02:09]}  Qf5 {[%clk 0:01:46]} 20. Qxf5 {[%clk 0:02:09]}  exf5 {[%clk 0:01:42]} 21. Rd6 {[%clk 0:02:06]}  Kg7 {[%clk 0:01:04]} 22. h5 {[%clk 0:02:04]}  Be5 {[%clk 0:00:57]} 23. Rxc6 {[%clk 0:02:02]}  Rb6 {[%clk 0:00:56]} 24. h6+ {[%clk 0:02:01]}  Kf8 {[%clk 0:00:52]} 25. Rxb6 {[%clk 0:01:56]}  axb6 {[%clk 0:00:51]} 26. Rd1 {[%clk 0:01:50]}  Bf4 {[%clk 0:00:49]} 27. g3 {[%clk 0:01:45]}  Bxh6 {[%clk 0:00:48]} 28. Bc4 {[%clk 0:01:32]}  f4 {[%clk 0:00:45]} 29. g4 {[%clk 0:01:32]}  f3 {[%clk 0:00:43]} 30. a4 {[%clk 0:01:20]}  Re4 {[%clk 0:00:41]} 31. b3 {[%clk 0:01:15]}  Rxg4 {[%clk 0:00:39]} 32. Rd3 {[%clk 0:01:15]}  Rg1+ {[%clk 0:00:38]} 33. Kb2 {[%clk 0:01:14]}  Rg2 {[%clk 0:00:27]} 34. Rxf3 {[%clk 0:01:13]}  f5 {[%clk 0:00:26]} 35. b4 {[%clk 0:01:14]}  Bg5 {[%clk 0:00:23]} 36. Bd5 {[%clk 0:01:14]}  Rh2 {[%clk 0:00:20]} 37. a5 {[%clk 0:01:13]}  bxa5 {[%clk 0:00:20]} 38. bxa5 {[%clk 0:01:13]}  Bh4 {[%clk 0:00:20]} 39. Kb3 {[%clk 0:01:04]}  Rxf2 {[%clk 0:00:20]} 40. Rh3 {[%clk 0:01:04]}  Be7 {[%clk 0:00:18]} 41. Rxh7 {[%clk 0:00:58]}  Bc5 {[%clk 0:00:18]} 42. a6 {[%clk 0:00:58]}  g5 {[%clk 0:00:16]} 43. a7 {[%clk 0:00:56]}  Bxa7 {[%clk 0:00:16]} 44. Rxa7 {[%clk 0:00:56]}  g4 {[%clk 0:00:16]} 45. c4 {[%clk 0:00:55]}  f4 {[%clk 0:00:15]} 46. c5 {[%clk 0:00:54]}  g3 {[%clk 0:00:13]} 47. c6 {[%clk 0:00:53]}  Rf1 {[%clk 0:00:12]} 48. c7 {[%clk 0:00:52]}  Rc1 {[%clk 0:00:12]} 49. Ra8+ {[%clk 0:00:52]}  Ke7 {[%clk 0:00:11]} 50. c8=Q {[%clk 0:00:52]}  Rxc8 {[%clk 0:00:11]} 51. Rxc8 {[%clk 0:00:53]}  Kf6 {[%clk 0:00:11]} 52. Bf3 {[%clk 0:00:53]}  Ke5 {[%clk 0:00:11]} 53. Rc4 {[%clk 0:00:52]} 1-0


[Site "https://www.chess.com"]

[Event "Titled Tuesday Blitz December 06 Late 2022"]
[White "Miszler, Levente"]
[Black "Darini, Pouria"]
[WhiteFideId "763276"]
[BlackFideId "12502200"]
[WhiteElo "2176"]
[BlackElo "2482"]
[Result "1-0"]
[Round "01"]
[TimeControl "180+1"]
[Date "2022.12.07"]
[WhiteClock "0:00:07"]
[BlackClock "0:00:17"]

1. Nf3 {[%clk 0:02:58]}  Nf6 {[%clk 0:02:55]} 2. c4 {[%clk 0:02:59]}  c5 {[%clk 0:02:54]} 3. g3 {[%clk 0:02:59]}  Nc6 {[%clk 0:02:54]} 4. Bg2 {[%clk 0:03:00]}  d5 {[%clk 0:02:55]} 5. cxd5 {[%clk 0:02:59]}  Nxd5 {[%clk 0:02:56]} 6. Nc3 {[%clk 0:03:00]}  Nc7 {[%clk 0:02:56]} 7. O-O {[%clk 0:02:56]}  e5 {[%clk 0:02:57]} 8. d3 {[%clk 0:02:56]}  Be7 {[%clk 0:02:57]} 9. Nd2 {[%clk 0:02:56]}  Bd7 {[%clk 0:02:55]} 10. Nc4 {[%clk 0:02:55]}  O-O {[%clk 0:02:54]} 11. Bxc6 {[%clk 0:02:43]}  Bxc6 {[%clk 0:02:54]} 12. Nxe5 {[%clk 0:02:44]}  Be8 {[%clk 0:02:55]} 13. Nf3 {[%clk 0:02:38]}  Bc6 {[%clk 0:02:48]} 14. Ne5 {[%clk 0:02:34]}  Be8 {[%clk 0:02:48]} 15. Nf3 {[%clk 0:02:35]}  Rc8 {[%clk 0:02:47]} 16. Qb3 {[%clk 0:02:28]}  b6 {[%clk 0:02:46]} 17. Be3 {[%clk 0:02:24]}  Bc6 {[%clk 0:02:44]} 18. Rad1 {[%clk 0:02:23]}  Nd5 {[%clk 0:02:32]} 19. Nxd5 {[%clk 0:02:13]}  Bxd5 {[%clk 0:02:32]} 20. Qc3 {[%clk 0:02:12]}  Bf6 {[%clk 0:02:26]} 21. Qa3 {[%clk 0:02:09]}  Qd7 {[%clk 0:02:15]} 22. d4 {[%clk 0:02:02]}  Bxf3 {[%clk 0:02:07]} 23. exf3 {[%clk 0:01:44]}  cxd4 {[%clk 0:02:08]} 24. Rd3 {[%clk 0:01:41]}  Rfd8 {[%clk 0:01:43]} 25. Rfd1 {[%clk 0:01:40]}  Rc4 {[%clk 0:00:47]} 26. b3 {[%clk 0:01:24]}  Rc7 {[%clk 0:00:27]} 27. Bxd4 {[%clk 0:01:20]}  Bxd4 {[%clk 0:00:28]} 28. Rxd4 {[%clk 0:01:20]}  Qxd4 {[%clk 0:00:28]} 29. Rxd4 {[%clk 0:01:21]}  Rxd4 {[%clk 0:00:29]} 30. Qb2 {[%clk 0:01:18]}  Rcd7 {[%clk 0:00:28]} 31. Qc2 {[%clk 0:01:13]}  h6 {[%clk 0:00:28]} 32. a4 {[%clk 0:01:08]}  Rd1+ {[%clk 0:00:26]} 33. Kg2 {[%clk 0:01:08]}  R1d2 {[%clk 0:00:27]} 34. Qc3 {[%clk 0:01:05]}  R2d3 {[%clk 0:00:26]} 35. Qc8+ {[%clk 0:00:58]}  Rd8 {[%clk 0:00:26]} 36. Qc4 {[%clk 0:00:58]}  R3d4 {[%clk 0:00:26]} 37. Qc3 {[%clk 0:00:58]}  Rd3 {[%clk 0:00:26]} 38. Qb4 {[%clk 0:00:57]}  R3d4 {[%clk 0:00:26]} 39. Qb5 {[%clk 0:00:56]}  R4d5 {[%clk 0:00:25]} 40. Qc4 {[%clk 0:00:56]}  a5 {[%clk 0:00:25]} 41. Qc6 {[%clk 0:00:53]}  R5d6 {[%clk 0:00:24]} 42. Qc4 {[%clk 0:00:53]}  Rd4 {[%clk 0:00:23]} 43. Qc6 {[%clk 0:00:52]}  R8d6 {[%clk 0:00:22]} 44. Qe8+ {[%clk 0:00:51]}  Kh7 {[%clk 0:00:23]} 45. Qxf7 {[%clk 0:00:51]}  Rb4 {[%clk 0:00:16]} 46. Qf5+ {[%clk 0:00:48]}  Kg8 {[%clk 0:00:17]} 47. Qc8+ {[%clk 0:00:47]}  Kh7 {[%clk 0:00:17]} 48. Qc2+ {[%clk 0:00:45]}  Kg8 {[%clk 0:00:17]} 49. f4 {[%clk 0:00:40]}  Rbd4 {[%clk 0:00:17]} 50. Qc8+ {[%clk 0:00:37]}  Kh7 {[%clk 0:00:15]} 51. Qf5+ {[%clk 0:00:35]}  Kg8 {[%clk 0:00:16]} 52. Qe5 {[%clk 0:00:32]}  R4d5 {[%clk 0:00:16]} 53. Qe4 {[%clk 0:00:32]}  Rd4 {[%clk 0:00:16]} 54. Qe5 {[%clk 0:00:32]}  R4d5 {[%clk 0:00:17]} 55. Qe8+ {[%clk 0:00:33]}  Kh7 {[%clk 0:00:17]} 56. f5 {[%clk 0:00:30]}  Rd4 {[%clk 0:00:05]} 57. h3 {[%clk 0:00:28]}  Rf6 {[%clk 0:00:05]} 58. g4 {[%clk 0:00:27]}  Rdd6 {[%clk 0:00:05]} 59. Qe5 {[%clk 0:00:24]}  Rc6 {[%clk 0:00:05]} 60. f4 {[%clk 0:00:23]}  Rc5 {[%clk 0:00:05]} 61. Qd4 {[%clk 0:00:20]}  Rfc6 {[%clk 0:00:05]} 62. Kg3 {[%clk 0:00:19]}  Rc3+ {[%clk 0:00:05]} 63. Kh4 {[%clk 0:00:19]}  R3c5 {[%clk 0:00:06]} 64. Qe4 {[%clk 0:00:18]}  Kg8 {[%clk 0:00:05]} 65. g5 {[%clk 0:00:15]}  hxg5+ {[%clk 0:00:06]} 66. fxg5 {[%clk 0:00:16]}  Rc8 {[%clk 0:00:03]} 67. Qe6+ {[%clk 0:00:16]}  Kh8 {[%clk 0:00:04]} 68. f6 {[%clk 0:00:15]}  gxf6 {[%clk 0:00:04]} 69. Qxf6+ {[%clk 0:00:15]}  Kg8 {[%clk 0:00:04]} 70. g6 {[%clk 0:00:14]}  R5c7 {[%clk 0:00:04]} 71. Qe6+ {[%clk 0:00:14]}  Kf8 {[%clk 0:00:05]} 72. Qf6+ {[%clk 0:00:13]}  Kg8 {[%clk 0:00:05]} 73. Kg5 {[%clk 0:00:12]}  Re8 {[%clk 0:00:05]} 74. h4 {[%clk 0:00:11]}  Rce7 {[%clk 0:00:05]} 75. Kh6 {[%clk 0:00:10]}  Re5 {[%clk 0:00:06]} 76. h5 {[%clk 0:00:10]}  R5e7 {[%clk 0:00:06]} 77. Qf5 {[%clk 0:00:10]}  Rc7 {[%clk 0:00:06]} 78. Qd5+ {[%clk 0:00:09]}  Kf8 {[%clk 0:00:05]} 79. Qd6+ {[%clk 0:00:09]}  Rce7 {[%clk 0:00:05]} 80. g7+ {[%clk 0:00:08]}  Kg8 {[%clk 0:00:06]} 81. Qd5+ {[%clk 0:00:08]}  Re6+ {[%clk 0:00:06]} 82. Kg5 {[%clk 0:00:07]}  Kxg7 {[%clk 0:00:07]} 83. Qd4+ {[%clk 0:00:07]}  Kg8 {[%clk 0:00:07]} 84. Qd5 {[%clk 0:00:07]}  Kh8 {[%clk 0:00:07]} 85. Qd4+ {[%clk 0:00:06]}  Kh7 {[%clk 0:00:08]} 86. Qd3+ {[%clk 0:00:05]}  Kg8 {[%clk 0:00:08]} 87. Qd5 {[%clk 0:00:05]}  Kf8 {[%clk 0:00:09]} 88. Qf5+ {[%clk 0:00:05]}  Ke7 {[%clk 0:00:09]} 89. h6 {[%clk 0:00:05]}  Rg8+ {[%clk 0:00:09]} 90. Kh5 {[%clk 0:00:05]}  Rf8 {[%clk 0:00:10]} 91. Qd5 {[%clk 0:00:05]}  Ref6 {[%clk 0:00:09]} 92. Qb7+ {[%clk 0:00:03]}  Kd6 {[%clk 0:00:08]} 93. Qxb6+ {[%clk 0:00:04]}  Kd5 {[%clk 0:00:09]} 94. Qb5+ {[%clk 0:00:04]}  Kd4 {[%clk 0:00:09]} 95. Qd7+ {[%clk 0:00:03]}  Kc3 {[%clk 0:00:09]} 96. h7 {[%clk 0:00:03]}  Rf5+ {[%clk 0:00:08]} 97. Kg6 {[%clk 0:00:03]}  R5f6+ {[%clk 0:00:08]} 98. Kg7 {[%clk 0:00:03]}  Rf1 {[%clk 0:00:07]} 99. h8=Q {[%clk 0:00:03]}  Rxh8 {[%clk 0:00:07]} 100. Kxh8 {[%clk 0:00:03]}  Rh1+ {[%clk 0:00:08]} 101. Kg7 {[%clk 0:00:03]}  Rd1 {[%clk 0:00:09]} 102. Qb5 {[%clk 0:00:03]}  Rd7+ {[%clk 0:00:10]} 103. Qxd7 {[%clk 0:00:02]}  Kb2 {[%clk 0:00:10]} 104. Qb5 {[%clk 0:00:03]}  Ka3 {[%clk 0:00:11]} 105. Qxa5 {[%clk 0:00:03]}  Kb2 {[%clk 0:00:12]} 106. Qb5 {[%clk 0:00:04]}  Ka2 {[%clk 0:00:13]} 107. a5 {[%clk 0:00:05]}  Kb2 {[%clk 0:00:14]} 108. a6 {[%clk 0:00:06]}  Ka3 {[%clk 0:00:15]} 109. a7 {[%clk 0:00:07]}  Kb2 {[%clk 0:00:16]} 110. a8=Q {[%clk 0:00:07]}  Kc3 {[%clk 0:00:17]} 111. Qc4+ {[%clk 0:00:07]} 1-0


[Site "https://www.chess.com"]

[Event "Titled Tuesday Blitz December 06 Late 2022"]
[White "Moksh Amit Doshi"]
[Black "Arbunic Castro, Giovanna"]
[WhiteFideId "25064967"]
[BlackFideId "3400549"]
[WhiteElo "2297"]
[BlackElo "1921"]
[Result "1-0"]
[Round "01"]
[TimeControl "180+1"]
[Date "2022.12.07"]
[WhiteClock "0:01:11"]
[BlackClock "0:00:52"]

1. e4 {[%clk 0:02:44]}  g6 {[%clk 0:02:57]} 2. d4 {[%clk 0:02:44]}  Bg7 {[%clk 0:02:57]} 3. Nf3 {[%clk 0:02:33]}  c5 {[%clk 0:02:55]} 4. dxc5 {[%clk 0:02:22]}  Qa5+ {[%clk 0:02:53]} 5. Nbd2 {[%clk 0:02:13]}  Qxc5 {[%clk 0:02:49]} 6. Bd3 {[%clk 0:02:12]}  d6 {[%clk 0:02:47]} 7. O-O {[%clk 0:01:20]}  Nf6 {[%clk 0:02:44]} 8. a3 {[%clk 0:01:19]}  O-O {[%clk 0:02:42]} 9. b4 {[%clk 0:01:18]}  Qc7 {[%clk 0:02:41]} 10. Bb2 {[%clk 0:01:18]}  Nbd7 {[%clk 0:02:37]} 11. h3 {[%clk 0:01:16]}  a5 {[%clk 0:02:33]} 12. Re1 {[%clk 0:01:15]}  axb4 {[%clk 0:02:31]} 13. axb4 {[%clk 0:01:16]}  Rxa1 {[%clk 0:02:30]} 14. Qxa1 {[%clk 0:01:17]}  e5 {[%clk 0:02:27]} 15. Nc4 {[%clk 0:01:15]}  b5 {[%clk 0:02:24]} 16. Na3 {[%clk 0:01:14]}  d5 {[%clk 0:02:01]} 17. Nxb5 {[%clk 0:01:14]}  Qb6 {[%clk 0:01:56]} 18. exd5 {[%clk 0:01:12]}  Nxd5 {[%clk 0:01:54]} 19. Nxe5 {[%clk 0:01:11]}  Nxe5 {[%clk 0:01:52]} 20. Bxe5 {[%clk 0:01:11]}  Bxe5 {[%clk 0:01:50]} 21. Qxe5 {[%clk 0:01:12]}  Nxb4 {[%clk 0:01:48]} 22. Nd6 {[%clk 0:01:12]}  Nxd3 {[%clk 0:01:41]} 23. cxd3 {[%clk 0:01:13]}  Be6 {[%clk 0:01:35]} 24. Ne4 {[%clk 0:01:12]}  f5 {[%clk 0:01:09]} 25. Nf6+ {[%clk 0:01:11]}  Kf7 {[%clk 0:01:08]} 26. Nxh7 {[%clk 0:01:11]}  Re8 {[%clk 0:00:52]} 27. Ng5+ {[%clk 0:01:11]} 1-0


[Site "https://www.chess.com"]

[Event "Titled Tuesday Blitz December 06 Late 2022"]
[White "Moral Garcia, Serafin"]
[Black "Keymer, Vincent"]
[WhiteFideId "2201925"]
[BlackFideId "12940690"]
[WhiteElo "2259"]
[BlackElo "2600"]
[Result "0-1"]
[Round "01"]
[TimeControl "180+1"]
[Date "2022.12.06"]
[WhiteClock "0:00:51"]
[BlackClock "0:01:18"]

1. Nf3 {[%clk 0:02:59]}  d5 {[%clk 0:02:59]} 2. b3 {[%clk 0:02:59]}  Bg4 {[%clk 0:02:59]} 3. Bb2 {[%clk 0:02:58]}  Nd7 {[%clk 0:02:58]} 4. e3 {[%clk 0:02:54]}  e6 {[%clk 0:02:57]} 5. Be2 {[%clk 0:02:54]}  Ngf6 {[%clk 0:02:56]} 6. O-O {[%clk 0:02:54]}  h6 {[%clk 0:02:56]} 7. c4 {[%clk 0:02:54]}  Be7 {[%clk 0:02:52]} 8. h3 {[%clk 0:02:54]}  Bf5 {[%clk 0:02:51]} 9. Nc3 {[%clk 0:02:54]}  O-O {[%clk 0:02:50]} 10. d4 {[%clk 0:02:47]}  c6 {[%clk 0:02:48]} 11. Bd3 {[%clk 0:02:47]}  Ne4 {[%clk 0:02:46]} 12. Qc2 {[%clk 0:02:40]}  Ndf6 {[%clk 0:02:41]} 13. Ne5 {[%clk 0:02:40]}  Bh7 {[%clk 0:02:34]} 14. f3 {[%clk 0:02:39]}  Ng3 {[%clk 0:02:32]} 15. Rfe1 {[%clk 0:02:37]}  Bxd3 {[%clk 0:02:31]} 16. Qxd3 {[%clk 0:02:37]}  Bd6 {[%clk 0:02:29]} 17. Ng4 {[%clk 0:02:36]}  Bc7 {[%clk 0:02:25]} 18. Nxf6+ {[%clk 0:02:21]}  Qxf6 {[%clk 0:02:25]} 19. e4 {[%clk 0:02:09]}  dxe4 {[%clk 0:01:42]} 20. Nxe4 {[%clk 0:02:05]}  Qf4 {[%clk 0:01:38]} 21. Bc1 {[%clk 0:01:37]}  Qh4 {[%clk 0:01:36]} 22. Be3 {[%clk 0:01:28]}  Nxe4 {[%clk 0:01:34]} 23. Qxe4 {[%clk 0:01:27]}  Qg3 {[%clk 0:01:33]} 24. f4 {[%clk 0:01:19]}  Rad8 {[%clk 0:01:31]} 25. Rad1 {[%clk 0:01:16]}  Rd7 {[%clk 0:01:28]} 26. Rf1 {[%clk 0:01:16]}  Qh4 {[%clk 0:01:24]} 27. Rd2 {[%clk 0:01:04]}  Rfd8 {[%clk 0:01:23]} 28. Rfd1 {[%clk 0:01:04]}  Qf6 {[%clk 0:01:21]} 29. d5 {[%clk 0:00:59]}  exd5 {[%clk 0:01:21]} 30. cxd5 {[%clk 0:00:59]}  Re7 {[%clk 0:01:21]} 31. Qd4 {[%clk 0:00:55]}  Rxe3 {[%clk 0:01:21]} 32. Qxf6 {[%clk 0:00:49]}  gxf6 {[%clk 0:01:20]} 33. dxc6 {[%clk 0:00:50]}  Rxd2 {[%clk 0:01:19]} 34. Rxd2 {[%clk 0:00:50]}  bxc6 {[%clk 0:01:19]} 35. Rd7 {[%clk 0:00:51]}  Bxf4 {[%clk 0:01:18]} 0-1


[Site "https://www.chess.com"]

[Event "Titled Tuesday Blitz December 06 Late 2022"]
[White "Moroni, Luca Jr"]
[Black "Peatman, Carter"]
[WhiteFideId "865834"]
[BlackFideId "2096480"]
[WhiteElo "2573"]
[BlackElo "2473"]
[Result "1-0"]
[Round "01"]
[TimeControl "180+1"]
[Date "2022.12.06"]
[WhiteClock "0:01:40"]
[BlackClock "0:01:20"]

1. d4 {[%clk 0:02:59]}  d5 {[%clk 0:02:55]} 2. Nf3 {[%clk 0:02:59]}  Nf6 {[%clk 0:02:54]} 3. Bf4 {[%clk 0:02:59]}  e6 {[%clk 0:02:48]} 4. e3 {[%clk 0:03:00]}  Bd6 {[%clk 0:02:32]} 5. Nbd2 {[%clk 0:02:59]}  O-O {[%clk 0:02:19]} 6. Bd3 {[%clk 0:02:57]}  c5 {[%clk 0:02:18]} 7. dxc5 {[%clk 0:02:55]}  Bxc5 {[%clk 0:02:17]} 8. O-O {[%clk 0:02:55]}  Nc6 {[%clk 0:02:16]} 9. e4 {[%clk 0:02:53]}  dxe4 {[%clk 0:02:13]} 10. Nxe4 {[%clk 0:02:54]}  Nxe4 {[%clk 0:02:11]} 11. Bxe4 {[%clk 0:02:55]}  Qb6 {[%clk 0:02:02]} 12. Bxh7+ {[%clk 0:02:26]}  Kxh7 {[%clk 0:02:02]} 13. Ng5+ {[%clk 0:02:26]}  Kg6 {[%clk 0:02:03]} 14. Qg4 {[%clk 0:02:10]}  f5 {[%clk 0:02:03]} 15. Qg3 {[%clk 0:01:51]}  Kf6 {[%clk 0:02:03]} 16. Nh7+ {[%clk 0:01:47]}  Kf7 {[%clk 0:02:02]} 17. Nxf8 {[%clk 0:01:48]}  Kxf8 {[%clk 0:02:02]} 18. Rad1 {[%clk 0:01:48]}  Bd4 {[%clk 0:01:51]} 19. c3 {[%clk 0:01:45]}  Bf6 {[%clk 0:01:51]} 20. Bg5 {[%clk 0:01:44]}  Be5 {[%clk 0:01:48]} 21. Qh4 {[%clk 0:01:44]}  Kg8 {[%clk 0:01:43]} 22. Qh5 {[%clk 0:01:43]}  Qxb2 {[%clk 0:01:21]} 23. Qe8+ {[%clk 0:01:39]}  Kh7 {[%clk 0:01:20]} 24. Rd3 {[%clk 0:01:40]} 1-0


[Site "https://www.chess.com"]

[Event "Titled Tuesday Blitz December 06 Late 2022"]
[White "Nepo"]
[Black "Danielyan, Vahe"]
[BlackFideId "13304828"]
[WhiteElo "2218"]
[BlackElo "2423"]
[Result "0-1"]
[Round "01"]
[TimeControl "180+1"]
[Date "2022.12.07"]
[WhiteClock "0:01:21"]
[BlackClock "0:01:37"]

1. e4 {[%clk 0:02:43]}  d6 {[%clk 0:03:00]} 2. d4 {[%clk 0:02:42]}  Nf6 {[%clk 0:03:01]} 3. Nc3 {[%clk 0:02:39]}  e5 {[%clk 0:03:02]} 4. dxe5 {[%clk 0:02:38]}  dxe5 {[%clk 0:03:03]} 5. Qxd8+ {[%clk 0:02:39]}  Kxd8 {[%clk 0:03:04]} 6. Bg5 {[%clk 0:02:38]}  Be6 {[%clk 0:03:00]} 7. O-O-O+ {[%clk 0:02:35]}  Kc8 {[%clk 0:02:58]} 8. f3 {[%clk 0:02:34]}  c6 {[%clk 0:02:58]} 9. Nge2 {[%clk 0:02:28]}  Nbd7 {[%clk 0:02:50]} 10. Ng3 {[%clk 0:02:25]}  h6 {[%clk 0:02:47]} 11. Be3 {[%clk 0:02:24]}  Bb4 {[%clk 0:02:46]} 12. a3 {[%clk 0:02:20]}  Bxc3 {[%clk 0:02:46]} 13. bxc3 {[%clk 0:02:21]}  Rd8 {[%clk 0:02:44]} 14. Nf5 {[%clk 0:02:20]}  Bxf5 {[%clk 0:02:45]} 15. exf5 {[%clk 0:02:21]}  Nd5 {[%clk 0:02:44]} 16. Bd2 {[%clk 0:02:19]}  N7f6 {[%clk 0:02:44]} 17. c4 {[%clk 0:02:19]}  Nb6 {[%clk 0:02:38]} 18. Bc3 {[%clk 0:02:17]}  Rxd1+ {[%clk 0:02:36]} 19. Kxd1 {[%clk 0:02:17]}  Nbd7 {[%clk 0:02:36]} 20. Bd3 {[%clk 0:02:13]}  Kc7 {[%clk 0:02:37]} 21. Re1 {[%clk 0:02:12]}  Re8 {[%clk 0:02:37]} 22. g3 {[%clk 0:02:10]}  b6 {[%clk 0:02:37]} 23. Kd2 {[%clk 0:02:08]}  c5 {[%clk 0:02:37]} 24. f4 {[%clk 0:02:06]}  e4 {[%clk 0:02:36]} 25. Bf1 {[%clk 0:02:05]}  Kd6 {[%clk 0:02:28]} 26. Bg2 {[%clk 0:02:04]}  h5 {[%clk 0:02:27]} 27. Kc1 {[%clk 0:02:02]}  Kc7 {[%clk 0:02:23]} 28. h3 {[%clk 0:01:55]}  a5 {[%clk 0:02:22]} 29. g4 {[%clk 0:01:51]}  hxg4 {[%clk 0:02:19]} 30. hxg4 {[%clk 0:01:52]}  Nxg4 {[%clk 0:02:02]} 31. Rxe4 {[%clk 0:01:52]}  Rxe4 {[%clk 0:01:59]} 32. Bxe4 {[%clk 0:01:53]}  Ndf6 {[%clk 0:01:59]} 33. Bd5 {[%clk 0:01:53]}  Nxd5 {[%clk 0:01:54]} 34. cxd5 {[%clk 0:01:54]}  Kd6 {[%clk 0:01:52]} 35. Bxg7 {[%clk 0:01:50]}  Kxd5 {[%clk 0:01:53]} 36. Kd2 {[%clk 0:01:50]}  Ke4 {[%clk 0:01:51]} 37. Bf8 {[%clk 0:01:41]}  Ne3 {[%clk 0:01:42]} 38. Be7 {[%clk 0:01:34]}  Nd5 {[%clk 0:01:40]} 39. Bd6 {[%clk 0:01:31]}  Kxf5 {[%clk 0:01:40]} 40. c4 {[%clk 0:01:30]}  Nxf4 {[%clk 0:01:36]} 41. Bc7 {[%clk 0:01:30]}  a4 {[%clk 0:01:36]} 42. Bxb6 {[%clk 0:01:30]}  Ne6 {[%clk 0:01:37]} 43. Ba7 {[%clk 0:01:26]}  Ke4 {[%clk 0:01:37]} 44. Kc3 {[%clk 0:01:26]}  f5 {[%clk 0:01:37]} 45. Bb8 {[%clk 0:01:27]}  f4 {[%clk 0:01:38]} 46. Bd6 {[%clk 0:01:21]}  Ke3 {[%clk 0:01:37]} 0-1


[Site "https://www.chess.com"]

[Event "Titled Tuesday Blitz December 06 Late 2022"]
[White "Osmonbekov, Talaibek"]
[Black "Obrien, Matthew"]
[WhiteFideId "2017253"]
[BlackFideId "2059150"]
[WhiteElo "2135"]
[BlackElo "2615"]
[Result "1-0"]
[Round "01"]
[TimeControl "180+1"]
[Date "2022.12.07"]
[WhiteClock "0:00:13"]
[BlackClock "0:00:01"]

1. d4 {[%clk 0:02:58]}  Nf6 {[%clk 0:02:59]} 2. Bf4 {[%clk 0:02:56]}  g6 {[%clk 0:02:57]} 3. Nc3 {[%clk 0:02:57]}  d5 {[%clk 0:02:56]} 4. e3 {[%clk 0:02:57]}  Bg7 {[%clk 0:02:56]} 5. h4 {[%clk 0:02:57]}  h5 {[%clk 0:02:56]} 6. Nf3 {[%clk 0:02:55]}  O-O {[%clk 0:02:55]} 7. Ne5 {[%clk 0:02:54]}  c5 {[%clk 0:02:54]} 8. Qd2 {[%clk 0:02:53]}  Nc6 {[%clk 0:02:54]} 9. O-O-O {[%clk 0:02:50]}  Be6 {[%clk 0:02:14]} 10. f3 {[%clk 0:02:47]}  Qa5 {[%clk 0:02:11]} 11. Kb1 {[%clk 0:02:38]}  cxd4 {[%clk 0:02:02]} 12. exd4 {[%clk 0:02:37]}  Rfc8 {[%clk 0:01:55]} 13. Be2 {[%clk 0:02:29]}  Nxe5 {[%clk 0:01:29]} 14. Bxe5 {[%clk 0:02:27]}  b5 {[%clk 0:01:19]} 15. Nxb5 {[%clk 0:01:17]}  Qb6 {[%clk 0:01:18]} 16. Nc3 {[%clk 0:01:17]}  a5 {[%clk 0:01:11]} 17. Na4 {[%clk 0:01:16]}  Qc6 {[%clk 0:01:07]} 18. Nc5 {[%clk 0:01:11]}  a4 {[%clk 0:00:35]} 19. a3 {[%clk 0:01:11]}  Bf5 {[%clk 0:00:27]} 20. Bd3 {[%clk 0:01:09]}  Bxd3 {[%clk 0:00:26]} 21. Qxd3 {[%clk 0:01:10]}  Nd7 {[%clk 0:00:21]} 22. Nxd7 {[%clk 0:00:59]}  Qxd7 {[%clk 0:00:22]} 23. Bxg7 {[%clk 0:00:59]}  Kxg7 {[%clk 0:00:23]} 24. g4 {[%clk 0:00:59]}  hxg4 {[%clk 0:00:19]} 25. h5 {[%clk 0:00:58]}  Rh8 {[%clk 0:00:19]} 26. hxg6 {[%clk 0:00:55]}  fxg6 {[%clk 0:00:15]} 27. fxg4 {[%clk 0:00:54]}  Qxg4 {[%clk 0:00:13]} 28. Rhg1 {[%clk 0:00:53]}  Qh5 {[%clk 0:00:05]} 29. Rg3 {[%clk 0:00:52]}  Raf8 {[%clk 0:00:05]} 30. Rdg1 {[%clk 0:00:52]}  Rf6 {[%clk 0:00:05]} 31. Qb5 {[%clk 0:00:35]}  Rhf8 {[%clk 0:00:05]} 32. Qxa4 {[%clk 0:00:34]}  Rf1+ {[%clk 0:00:04]} 33. Rxf1 {[%clk 0:00:31]}  Rxf1+ {[%clk 0:00:05]} 34. Ka2 {[%clk 0:00:31]}  Qd1 {[%clk 0:00:06]} 35. Qc6 {[%clk 0:00:26]}  Qa1+ {[%clk 0:00:04]} 36. Kb3 {[%clk 0:00:26]}  Rf6 {[%clk 0:00:04]} 37. Qxd5 {[%clk 0:00:25]}  Qe1 {[%clk 0:00:03]} 38. Qe5 {[%clk 0:00:25]}  Qf2 {[%clk 0:00:03]} 39. Qxe7+ {[%clk 0:00:25]}  Rf7 {[%clk 0:00:03]} 40. Qe5+ {[%clk 0:00:24]}  Rf6 {[%clk 0:00:04]} 41. Rc3 {[%clk 0:00:22]}  Kh6 {[%clk 0:00:03]} 42. d5 {[%clk 0:00:20]}  Rf5 {[%clk 0:00:03]} 43. Rh3+ {[%clk 0:00:20]}  Rh5 {[%clk 0:00:01]} 44. Rxh5+ {[%clk 0:00:18]}  gxh5 {[%clk 0:00:02]} 45. d6 {[%clk 0:00:18]}  Qb6+ {[%clk 0:00:02]} 46. Ka2 {[%clk 0:00:18]}  Qc6 {[%clk 0:00:01]} 47. Qf4+ {[%clk 0:00:16]}  Kg6 {[%clk 0:00:01]} 48. Qd2 {[%clk 0:00:15]}  Qd7 {[%clk 0:00:01]} 49. Qd5 {[%clk 0:00:14]}  h4 {[%clk 0:00:01]} 50. Qe4+ {[%clk 0:00:14]}  Kg5 {[%clk 0:00:01]} 51. Qe7+ {[%clk 0:00:13]} 1-0


[Site "https://www.chess.com"]

[Event "Titled Tuesday Blitz December 06 Late 2022"]
[White "Ozer, Omer Faruk"]
[Black "Freile Martin, Javier"]
[WhiteFideId "6354564"]
[BlackFideId "3600165"]
[WhiteElo "2260"]
[BlackElo "2322"]
[Result "1-0"]
[Round "01"]
[TimeControl "180+1"]
[Date "2022.12.07"]
[WhiteClock "0:02:16"]
[BlackClock "0:02:29"]

1. e4 {[%clk 0:03:00]}  c5 {[%clk 0:02:58]} 2. Nc3 {[%clk 0:03:01]}  d6 {[%clk 0:02:58]} 3. f4 {[%clk 0:03:01]}  Nc6 {[%clk 0:02:57]} 4. Nf3 {[%clk 0:03:01]}  e6 {[%clk 0:02:57]} 5. Bb5 {[%clk 0:03:02]}  Ne7 {[%clk 0:02:56]} 6. O-O {[%clk 0:03:02]}  g6 {[%clk 0:02:56]} 7. d3 {[%clk 0:03:01]}  Bg7 {[%clk 0:02:55]} 8. Qe1 {[%clk 0:03:00]}  O-O {[%clk 0:02:54]} 9. f5 {[%clk 0:02:59]}  exf5 {[%clk 0:02:48]} 10. Qh4 {[%clk 0:02:57]}  f6 {[%clk 0:02:45]} 11. Bh6 {[%clk 0:02:27]}  g5 {[%clk 0:02:36]} 12. Bxg5 {[%clk 0:02:19]}  fxg5 {[%clk 0:02:35]} 13. Nxg5 {[%clk 0:02:19]}  h6 {[%clk 0:02:35]} 14. Bc4+ {[%clk 0:02:19]}  Kh8 {[%clk 0:02:35]} 15. Nf7+ {[%clk 0:02:19]}  Rxf7 {[%clk 0:02:34]} 16. Bxf7 {[%clk 0:02:19]}  Ne5 {[%clk 0:02:33]} 17. Bb3 {[%clk 0:02:17]}  N7g6 {[%clk 0:02:29]} 18. Qxd8+ {[%clk 0:02:16]} 1-0


[Site "https://www.chess.com"]